[Event "Titled Tuesday Blitz July 18 Late 2023"]
[White "Chor, Kevin"]
[Black "David, Bogdan-Emanuel"]
[WhiteFideId "2090740"]
[BlackFideId "1229907"]
[WhiteElo "2511"]
[BlackElo "2607"]
[Result "1-0"]
[Round "8"]
[TimeControl "180+2"]
[Date "2023.07.18"]
[WhiteClock "0:00:15"]
[BlackClock "0:00:15"]
[Board "54"]

1. e4 {[%clk 0:03:00]}  c5 {[%clk 0:02:58]} 2. Nf3 {[%clk 0:03:01]}  Nc6 {[%clk 0:02:57]} 3. d4 {[%clk 0:02:59]}  cxd4 {[%clk 0:02:58]} 4. Nxd4 {[%clk 0:03:00]}  e5 {[%clk 0:02:58]} 5. Nb5 {[%clk 0:03:00]}  d6 {[%clk 0:02:58]} 6. N1c3 {[%clk 0:03:00]}  a6 {[%clk 0:02:59]} 7. Na3 {[%clk 0:03:00]}  b5 {[%clk 0:02:59]} 8. Nd5 {[%clk 0:03:00]}  Nge7 {[%clk 0:03:00]} 9. Bg5 {[%clk 0:02:46]}  h6 {[%clk 0:02:59]} 10. Bxe7 {[%clk 0:02:43]}  Nxe7 {[%clk 0:02:56]} 11. c3 {[%clk 0:02:36]}  Nxd5 {[%clk 0:02:54]} 12. exd5 {[%clk 0:02:35]}  Be7 {[%clk 0:02:50]} 13. g3 {[%clk 0:02:33]}  O-O {[%clk 0:02:47]} 14. Bg2 {[%clk 0:02:33]}  f5 {[%clk 0:02:39]} 15. O-O {[%clk 0:02:32]}  f4 {[%clk 0:02:40]} 16. Nc2 {[%clk 0:02:31]}  a5 {[%clk 0:02:35]} 17. Qd3 {[%clk 0:02:10]}  Ba6 {[%clk 0:02:30]} 18. Bh3 {[%clk 0:02:09]}  Qb6 {[%clk 0:02:16]} 19. Be6+ {[%clk 0:01:59]}  Kh8 {[%clk 0:02:16]} 20. b4 {[%clk 0:01:36]}  Qc7 {[%clk 0:02:10]} 21. Rac1 {[%clk 0:01:30]}  Rab8 {[%clk 0:01:52]} 22. Rfe1 {[%clk 0:01:15]}  Bg5 {[%clk 0:01:46]} 23. Rcd1 {[%clk 0:01:01]}  Bc8 {[%clk 0:01:36]} 24. bxa5 {[%clk 0:00:58]}  Qxa5 {[%clk 0:01:27]} 25. Nb4 {[%clk 0:00:58]}  Qb6 {[%clk 0:01:27]} 26. Re2 {[%clk 0:00:44]}  Re8 {[%clk 0:01:07]} 27. Qg6 {[%clk 0:00:35]}  Rf8 {[%clk 0:00:46]} 28. Nc6 {[%clk 0:00:26]}  Ra8 {[%clk 0:00:46]} 29. Bxc8 {[%clk 0:00:24]}  Raxc8 {[%clk 0:00:39]} 30. Qxd6 {[%clk 0:00:24]}  fxg3 {[%clk 0:00:35]} 31. hxg3 {[%clk 0:00:25]}  Rfd8 {[%clk 0:00:19]} 32. Nxd8 {[%clk 0:00:17]}  Qxd8 {[%clk 0:00:18]} 33. Qxd8+ {[%clk 0:00:16]}  Rxd8 {[%clk 0:00:19]} 34. Rxe5 {[%clk 0:00:15]}  Bf6 {[%clk 0:00:19]} 35. Re3 {[%clk 0:00:14]}  Rd6 {[%clk 0:00:19]} 36. Re6 {[%clk 0:00:11]}  Rd7 {[%clk 0:00:18]} 37. d6 {[%clk 0:00:10]}  Bxc3 {[%clk 0:00:18]} 38. Re7 {[%clk 0:00:11]}  Rd8 {[%clk 0:00:18]} 39. d7 {[%clk 0:00:11]}  Bf6 {[%clk 0:00:17]} 40. Re8+ {[%clk 0:00:11]}  Kh7 {[%clk 0:00:18]} 41. Rxd8 {[%clk 0:00:12]}  Bxd8 {[%clk 0:00:19]} 42. Re1 {[%clk 0:00:13]}  Ba5 {[%clk 0:00:16]} 43. Re8 {[%clk 0:00:14]}  Kg6 {[%clk 0:00:16]} 44. d8=Q {[%clk 0:00:14]}  Bxd8 {[%clk 0:00:15]} 45. Rxd8 {[%clk 0:00:15]} 1-0


[Site "https://www.chess.com"]

[Event "Titled Tuesday Blitz July 18 Late 2023"]
[White "Vaibhav Jayant Raut"]
[Black "CatLivesMatter"]
[WhiteFideId "5089034"]
[WhiteElo "2601"]
[BlackElo "2504"]
[Result "1-0"]
[Round "8"]
[TimeControl "180+2"]
[Date "2023.07.18"]
[WhiteClock "0:00:20"]
[BlackClock "0:00:08"]
[Board "57"]

1. a3 {[%clk 0:02:54]}  a6 {[%clk 0:02:58]} 2. h3 {[%clk 0:02:53]}  h6 {[%clk 0:02:58]} 3. e4 {[%clk 0:02:51]}  e5 {[%clk 0:02:57]} 4. Nf3 {[%clk 0:02:51]}  Nc6 {[%clk 0:02:58]} 5. Nc3 {[%clk 0:02:51]}  Nf6 {[%clk 0:02:58]} 6. b4 {[%clk 0:02:45]}  d5 {[%clk 0:02:55]} 7. exd5 {[%clk 0:02:44]}  Nxd5 {[%clk 0:02:55]} 8. Bb2 {[%clk 0:02:44]}  Nxc3 {[%clk 0:02:50]} 9. Bxc3 {[%clk 0:02:45]}  Bd6 {[%clk 0:02:51]} 10. Be2 {[%clk 0:02:38]}  O-O {[%clk 0:02:50]} 11. d3 {[%clk 0:02:35]}  Bf5 {[%clk 0:02:47]} 12. O-O {[%clk 0:02:35]}  Qd7 {[%clk 0:02:44]} 13. Nd2 {[%clk 0:02:27]}  Rad8 {[%clk 0:02:39]} 14. Bf3 {[%clk 0:02:21]}  Nd4 {[%clk 0:02:07]} 15. Bxd4 {[%clk 0:02:11]}  exd4 {[%clk 0:02:07]} 16. Re1 {[%clk 0:02:02]}  Rfe8 {[%clk 0:02:02]} 17. Ne4 {[%clk 0:01:58]}  Bf8 {[%clk 0:02:01]} 18. Qd2 {[%clk 0:01:54]}  b6 {[%clk 0:01:52]} 19. Qf4 {[%clk 0:01:51]}  Bg6 {[%clk 0:01:48]} 20. h4 {[%clk 0:01:47]}  Bxe4 {[%clk 0:01:35]} 21. Rxe4 {[%clk 0:01:40]}  Rxe4 {[%clk 0:01:34]} 22. Bxe4 {[%clk 0:01:41]}  Bd6 {[%clk 0:01:34]} 23. Qf3 {[%clk 0:01:38]}  Qe7 {[%clk 0:01:31]} 24. g3 {[%clk 0:01:37]}  g6 {[%clk 0:01:16]} 25. h5 {[%clk 0:01:34]}  Kg7 {[%clk 0:01:16]} 26. hxg6 {[%clk 0:01:29]}  fxg6 {[%clk 0:01:17]} 27. Qg4 {[%clk 0:01:28]}  Qf6 {[%clk 0:01:16]} 28. f4 {[%clk 0:01:28]}  h5 {[%clk 0:01:14]} 29. Qh3 {[%clk 0:01:26]}  h4 {[%clk 0:01:14]} 30. Rf1 {[%clk 0:01:24]}  hxg3 {[%clk 0:01:13]} 31. Qxg3 {[%clk 0:01:25]}  Rh8 {[%clk 0:01:13]} 32. Rf2 {[%clk 0:01:23]}  Rh4 {[%clk 0:01:10]} 33. Rg2 {[%clk 0:01:19]}  Rxf4 {[%clk 0:00:43]} 34. Qxg6+ {[%clk 0:01:17]}  Qxg6 {[%clk 0:00:43]} 35. Rxg6+ {[%clk 0:01:17]}  Kf7 {[%clk 0:00:43]} 36. Rh6 {[%clk 0:01:16]}  Rg4+ {[%clk 0:00:43]} 37. Kf2 {[%clk 0:01:13]}  Rg5 {[%clk 0:00:41]} 38. Rh7+ {[%clk 0:01:07]}  Ke6 {[%clk 0:00:41]} 39. Rh8 {[%clk 0:01:05]}  a5 {[%clk 0:00:34]} 40. Re8+ {[%clk 0:00:59]}  Kd7 {[%clk 0:00:32]} 41. Rh8 {[%clk 0:00:57]}  axb4 {[%clk 0:00:32]} 42. axb4 {[%clk 0:00:58]}  Bxb4 {[%clk 0:00:31]} 43. Rh7+ {[%clk 0:00:58]}  Be7 {[%clk 0:00:31]} 44. Bf3 {[%clk 0:00:55]}  c5 {[%clk 0:00:28]} 45. Rh6 {[%clk 0:00:54]}  Bd6 {[%clk 0:00:27]} 46. Rh7+ {[%clk 0:00:54]}  Kd8 {[%clk 0:00:24]} 47. Rb7 {[%clk 0:00:52]}  Bc7 {[%clk 0:00:24]} 48. Ra7 {[%clk 0:00:50]}  Kd7 {[%clk 0:00:24]} 49. Be4 {[%clk 0:00:49]}  Rh5 {[%clk 0:00:23]} 50. Ra2 {[%clk 0:00:48]}  Rh2+ {[%clk 0:00:23]} 51. Kf3 {[%clk 0:00:49]}  Rh3+ {[%clk 0:00:23]} 52. Kg4 {[%clk 0:00:49]}  Rg3+ {[%clk 0:00:24]} 53. Kf5 {[%clk 0:00:49]}  Re3 {[%clk 0:00:23]} 54. Ra1 {[%clk 0:00:48]}  Re2 {[%clk 0:00:22]} 55. Ra2 {[%clk 0:00:48]}  Kd6 {[%clk 0:00:22]} 56. Kg4 {[%clk 0:00:46]}  Ke5 {[%clk 0:00:22]} 57. Kf3 {[%clk 0:00:47]}  Re3+ {[%clk 0:00:21]} 58. Kf2 {[%clk 0:00:47]}  Ke6 {[%clk 0:00:21]} 59. Ra7 {[%clk 0:00:47]}  Kd6 {[%clk 0:00:21]} 60. Ra2 {[%clk 0:00:46]}  Rh3 {[%clk 0:00:21]} 61. Kg2 {[%clk 0:00:44]}  Rh4 {[%clk 0:00:20]} 62. Ra8 {[%clk 0:00:44]}  Kd7 {[%clk 0:00:19]} 63. Bf5+ {[%clk 0:00:43]}  Ke7 {[%clk 0:00:19]} 64. Ra2 {[%clk 0:00:42]}  Rh2+ {[%clk 0:00:18]} 65. Kf3 {[%clk 0:00:42]}  b5 {[%clk 0:00:16]} 66. Be4 {[%clk 0:00:37]}  Kd6 {[%clk 0:00:15]} 67. Ra6+ {[%clk 0:00:37]}  Ke7 {[%clk 0:00:15]} 68. Ra2 {[%clk 0:00:32]}  c4 {[%clk 0:00:15]} 69. dxc4 {[%clk 0:00:29]}  bxc4 {[%clk 0:00:16]} 70. Ra4 {[%clk 0:00:29]}  c3 {[%clk 0:00:14]} 71. Rxd4 {[%clk 0:00:27]}  Be5 {[%clk 0:00:14]} 72. Rc4 {[%clk 0:00:26]}  Kf6 {[%clk 0:00:14]} 73. Bd3 {[%clk 0:00:25]}  Rh3+ {[%clk 0:00:13]} 74. Kg4 {[%clk 0:00:20]}  Rg3+ {[%clk 0:00:13]} 75. Kh4 {[%clk 0:00:20]}  Rg1 {[%clk 0:00:13]} 76. Rc6+ {[%clk 0:00:20]}  Kf7 {[%clk 0:00:13]} 77. Kh5 {[%clk 0:00:19]}  Bf6 {[%clk 0:00:11]} 78. Bc4+ {[%clk 0:00:18]}  Kg7 {[%clk 0:00:06]} 79. Rc7+ {[%clk 0:00:18]}  Kf8 {[%clk 0:00:06]} 80. Rf7+ {[%clk 0:00:18]}  Ke8 {[%clk 0:00:05]} 81. Rxf6 {[%clk 0:00:18]}  Rh1+ {[%clk 0:00:05]} 82. Kg4 {[%clk 0:00:18]}  Rg1+ {[%clk 0:00:05]} 83. Kf5 {[%clk 0:00:16]}  Rd1 {[%clk 0:00:05]} 84. Rc6 {[%clk 0:00:15]}  Rd2 {[%clk 0:00:05]} 85. Bd3 {[%clk 0:00:15]}  Rf2+ {[%clk 0:00:06]} 86. Ke4 {[%clk 0:00:15]}  Rh2 {[%clk 0:00:07]} 87. Rxc3 {[%clk 0:00:15]}  Rh4+ {[%clk 0:00:07]} 88. Kd5 {[%clk 0:00:16]}  Rh5+ {[%clk 0:00:08]} 89. Kd4 {[%clk 0:00:16]}  Rh4+ {[%clk 0:00:09]} 90. Be4 {[%clk 0:00:17]}  Rh5 {[%clk 0:00:09]} 91. Rc5 {[%clk 0:00:17]}  Rh4 {[%clk 0:00:09]} 92. Re5+ {[%clk 0:00:17]}  Kd7 {[%clk 0:00:09]} 93. c3 {[%clk 0:00:18]}  Kd6 {[%clk 0:00:10]} 94. Rd5+ {[%clk 0:00:18]}  Ke6 {[%clk 0:00:10]} 95. c4 {[%clk 0:00:19]}  Rh2 {[%clk 0:00:10]} 96. Kc5 {[%clk 0:00:19]}  Ra2 {[%clk 0:00:10]} 97. Rd6+ {[%clk 0:00:17]}  Ke5 {[%clk 0:00:10]} 98. Bc6 {[%clk 0:00:17]}  Ra5+ {[%clk 0:00:10]} 99. Bb5 {[%clk 0:00:18]}  Ra1 {[%clk 0:00:09]} 100. Rd8 {[%clk 0:00:18]}  Rc1 {[%clk 0:00:09]} 101. Re8+ {[%clk 0:00:19]}  Kf6 {[%clk 0:00:09]} 102. Kb6 {[%clk 0:00:19]}  Rh1 {[%clk 0:00:08]} 103. c5 {[%clk 0:00:20]}  Kf7 {[%clk 0:00:08]} 104. Re2 {[%clk 0:00:19]}  Rh6+ {[%clk 0:00:08]} 105. c6 {[%clk 0:00:19]}  Kf8 {[%clk 0:00:08]} 106. Kb7 {[%clk 0:00:19]}  Rh7+ {[%clk 0:00:08]} 107. c7 {[%clk 0:00:20]} 1-0


[Site "https://www.chess.com"]

[Event "Titled Tuesday Blitz July 18 Late 2023"]
[White "Rietze, Clemens, Dr."]
[Black "Fonseca Manrique, Enrique"]
[WhiteFideId "24620351"]
[BlackFideId "5114330"]
[WhiteElo "2492"]
[BlackElo "2583"]
[Result "0-1"]
[Round "8"]
[TimeControl "180+2"]
[Date "2023.07.18"]
[WhiteClock "0:00:00"]
[BlackClock "0:00:07"]
[Board "60"]

1. d4 {[%clk 0:03:00]}  Nf6 {[%clk 0:02:59]} 2. c4 {[%clk 0:03:00]}  c5 {[%clk 0:02:59]} 3. d5 {[%clk 0:03:00]}  b5 {[%clk 0:03:00]} 4. cxb5 {[%clk 0:03:00]}  a6 {[%clk 0:03:00]} 5. bxa6 {[%clk 0:03:01]}  g6 {[%clk 0:03:00]} 6. Nc3 {[%clk 0:03:01]}  Bg7 {[%clk 0:03:00]} 7. e4 {[%clk 0:03:01]}  O-O {[%clk 0:03:00]} 8. a7 {[%clk 0:03:01]}  Rxa7 {[%clk 0:02:59]} 9. Nf3 {[%clk 0:02:58]}  d6 {[%clk 0:02:58]} 10. Be2 {[%clk 0:02:55]}  e6 {[%clk 0:02:58]} 11. O-O {[%clk 0:02:52]}  exd5 {[%clk 0:02:58]} 12. exd5 {[%clk 0:02:52]}  Ba6 {[%clk 0:02:53]} 13. Bxa6 {[%clk 0:02:33]}  Nxa6 {[%clk 0:02:41]} 14. Nb5 {[%clk 0:02:33]}  Rd7 {[%clk 0:02:41]} 15. Bf4 {[%clk 0:02:29]}  Nb4 {[%clk 0:02:31]} 16. Nc3 {[%clk 0:02:24]}  Qa8 {[%clk 0:02:29]} 17. Qd2 {[%clk 0:02:03]}  Nbxd5 {[%clk 0:02:24]} 18. Bg3 {[%clk 0:02:00]}  Nxc3 {[%clk 0:02:21]} 19. bxc3 {[%clk 0:02:00]}  Ne4 {[%clk 0:02:20]} 20. Qc2 {[%clk 0:02:00]}  Nxc3 {[%clk 0:02:16]} 21. a4 {[%clk 0:01:54]}  Re8 {[%clk 0:01:50]} 22. Ra3 {[%clk 0:01:53]}  Ne2+ {[%clk 0:01:44]} 23. Kh1 {[%clk 0:01:53]}  Nxg3+ {[%clk 0:01:44]} 24. fxg3 {[%clk 0:01:46]}  Qa6 {[%clk 0:01:42]} 25. Rd1 {[%clk 0:01:27]}  Rde7 {[%clk 0:01:32]} 26. h3 {[%clk 0:01:13]}  h6 {[%clk 0:01:00]} 27. Qd2 {[%clk 0:01:06]}  Re6 {[%clk 0:01:00]} 28. Qd5 {[%clk 0:00:58]}  Rb8 {[%clk 0:00:50]} 29. Rb3 {[%clk 0:00:49]}  Rxb3 {[%clk 0:00:39]} 30. Qxb3 {[%clk 0:00:49]}  c4 {[%clk 0:00:36]} 31. Qb4 {[%clk 0:00:47]}  c3 {[%clk 0:00:32]} 32. a5 {[%clk 0:00:47]}  c2 {[%clk 0:00:24]} 33. Rc1 {[%clk 0:00:47]}  Re2 {[%clk 0:00:20]} 34. Qb6 {[%clk 0:00:38]}  Qd3 {[%clk 0:00:16]} 35. Qg1 {[%clk 0:00:32]}  Bb2 {[%clk 0:00:15]} 36. Rf1 {[%clk 0:00:25]}  Qe3 {[%clk 0:00:13]} 37. a6 {[%clk 0:00:15]}  Qxg1+ {[%clk 0:00:08]} 38. Nxg1 {[%clk 0:00:13]}  c1=Q {[%clk 0:00:09]} 39. Rxc1 {[%clk 0:00:07]}  Bxc1 {[%clk 0:00:07]} 40. Nxe2 {[%clk 0:00:07]}  Be3 {[%clk 0:00:08]} 41. Nc3 {[%clk 0:00:06]}  Kf8 {[%clk 0:00:08]} 42. Nb5 {[%clk 0:00:06]}  Ke7 {[%clk 0:00:06]} 43. a7 {[%clk 0:00:07]}  Bxa7 {[%clk 0:00:06]} 44. Nxa7 {[%clk 0:00:07]}  Kd7 {[%clk 0:00:07]} 45. Nb5 {[%clk 0:00:07]}  Kc6 {[%clk 0:00:08]} 46. Nc3 {[%clk 0:00:07]}  Kc5 {[%clk 0:00:07]} 47. Kg1 {[%clk 0:00:07]}  Kc4 {[%clk 0:00:08]} 48. Nd1 {[%clk 0:00:06]}  Kd3 {[%clk 0:00:08]} 49. Nf2+ {[%clk 0:00:04]}  Ke2 {[%clk 0:00:08]} 50. Ne4 {[%clk 0:00:02]}  d5 {[%clk 0:00:09]} 51. Nc5 {[%clk 0:00:02]}  d4 {[%clk 0:00:08]} 52. g4 {[%clk 0:00:00]}  f5 {[%clk 0:00:07]} 0-1


[Site "https://www.chess.com"]

[Event "Titled Tuesday Blitz July 18 Late 2023"]
[White "brm72"]
[Black "Toniutti, Ezio"]
[BlackFideId "113034"]
[WhiteElo "2581"]
[BlackElo "2478"]
[Result "0-1"]
[Round "8"]
[TimeControl "180+2"]
[Date "2023.07.18"]
[WhiteClock "0:00:09"]
[BlackClock "0:00:09"]
[Board "61"]

1. e4 {[%clk 0:03:00]}  e5 {[%clk 0:02:59]} 2. Nf3 {[%clk 0:03:00]}  Nc6 {[%clk 0:02:58]} 3. d4 {[%clk 0:03:00]}  exd4 {[%clk 0:02:57]} 4. Nxd4 {[%clk 0:03:01]}  Bc5 {[%clk 0:02:56]} 5. Nb3 {[%clk 0:03:02]}  Bb6 {[%clk 0:02:56]} 6. Qe2 {[%clk 0:03:02]}  d6 {[%clk 0:02:55]} 7. Nc3 {[%clk 0:03:01]}  Nf6 {[%clk 0:02:55]} 8. Be3 {[%clk 0:03:00]}  Be6 {[%clk 0:02:55]} 9. O-O-O {[%clk 0:02:59]}  Qe7 {[%clk 0:02:55]} 10. g3 {[%clk 0:02:58]}  O-O-O {[%clk 0:02:46]} 11. Bg2 {[%clk 0:02:58]}  Rhe8 {[%clk 0:02:45]} 12. Rhe1 {[%clk 0:02:53]}  Kb8 {[%clk 0:02:44]} 13. Kb1 {[%clk 0:02:52]}  Bg4 {[%clk 0:02:36]} 14. f3 {[%clk 0:02:51]}  Bc8 {[%clk 0:02:34]} 15. Bxb6 {[%clk 0:02:44]}  axb6 {[%clk 0:02:34]} 16. h3 {[%clk 0:02:43]}  d5 {[%clk 0:02:05]} 17. Qf1 {[%clk 0:01:13]}  d4 {[%clk 0:01:59]} 18. Nd5 {[%clk 0:01:05]}  Qd6 {[%clk 0:01:41]} 19. f4 {[%clk 0:01:05]}  Nxd5 {[%clk 0:01:19]} 20. exd5 {[%clk 0:01:05]}  Nb4 {[%clk 0:01:10]} 21. Rxd4 {[%clk 0:01:01]}  Bf5 {[%clk 0:01:06]} 22. Rd2 {[%clk 0:00:51]}  Qg6 {[%clk 0:00:45]} 23. Rxe8 {[%clk 0:00:07]}  Rxe8 {[%clk 0:00:44]} 24. Qc4 {[%clk 0:00:07]}  Nxc2 {[%clk 0:00:16]} 25. Rxc2 {[%clk 0:00:08]}  Bxc2+ {[%clk 0:00:16]} 26. Qxc2 {[%clk 0:00:09]}  Qxc2+ {[%clk 0:00:16]} 27. Kxc2 {[%clk 0:00:10]}  Re2+ {[%clk 0:00:16]} 28. Nd2 {[%clk 0:00:04]}  Rxg2 {[%clk 0:00:16]} 29. g4 {[%clk 0:00:04]}  Rg3 {[%clk 0:00:15]} 30. Ne4 {[%clk 0:00:03]}  Rxh3 {[%clk 0:00:15]} 31. Ng5 {[%clk 0:00:04]}  Rh2+ {[%clk 0:00:14]} 32. Kc3 {[%clk 0:00:04]}  Rg2 {[%clk 0:00:13]} 33. Nxf7 {[%clk 0:00:03]}  Rxg4 {[%clk 0:00:13]} 34. f5 {[%clk 0:00:03]}  Rf4 {[%clk 0:00:13]} 35. d6 {[%clk 0:00:04]}  cxd6 {[%clk 0:00:11]} 36. Nxd6 {[%clk 0:00:04]}  h5 {[%clk 0:00:11]} 37. Kd3 {[%clk 0:00:03]}  h4 {[%clk 0:00:11]} 38. Ke3 {[%clk 0:00:04]}  Rf1 {[%clk 0:00:11]} 39. Ne4 {[%clk 0:00:04]}  h3 {[%clk 0:00:11]} 40. Ng3 {[%clk 0:00:04]}  Rg1 {[%clk 0:00:09]} 41. Kf2 {[%clk 0:00:05]}  Rg2+ {[%clk 0:00:10]} 42. Kf3 {[%clk 0:00:06]}  Rxb2 {[%clk 0:00:10]} 43. Nf1 {[%clk 0:00:06]}  Rxa2 {[%clk 0:00:09]} 44. Kg3 {[%clk 0:00:06]}  Ra3+ {[%clk 0:00:09]} 45. Kh2 {[%clk 0:00:05]}  Rf3 {[%clk 0:00:09]} 46. Ng3 {[%clk 0:00:06]}  Rxg3 {[%clk 0:00:07]} 47. Kxg3 {[%clk 0:00:07]}  Kc7 {[%clk 0:00:08]} 48. Kxh3 {[%clk 0:00:08]}  Kd6 {[%clk 0:00:08]} 49. Kg4 {[%clk 0:00:08]}  Ke7 {[%clk 0:00:08]} 50. Kg5 {[%clk 0:00:09]}  Kf7 {[%clk 0:00:09]} 51. Kf4 {[%clk 0:00:09]}  Kf6 {[%clk 0:00:09]} 0-1


[Site "https://www.chess.com"]

[Event "Titled Tuesday Blitz July 18 Late 2023"]
[White "Voege, Tobias"]
[Black "Glavina, Pablo"]
[WhiteFideId "1270513"]
[BlackFideId "100234"]
[WhiteElo "2579"]
[BlackElo "2466"]
[Result "0-1"]
[Round "8"]
[TimeControl "180+2"]
[Date "2023.07.18"]
[WhiteClock "0:00:09"]
[BlackClock "0:00:03"]
[Board "62"]

1. e4 {[%clk 0:02:59]}  c5 {[%clk 0:02:58]} 2. Nf3 {[%clk 0:02:58]}  Nc6 {[%clk 0:02:59]} 3. d4 {[%clk 0:02:59]}  cxd4 {[%clk 0:02:59]} 4. Nxd4 {[%clk 0:03:00]}  Nf6 {[%clk 0:03:00]} 5. Nc3 {[%clk 0:02:59]}  d6 {[%clk 0:03:01]} 6. Bc4 {[%clk 0:02:56]}  Qb6 {[%clk 0:02:55]} 7. Nde2 {[%clk 0:02:43]}  g6 {[%clk 0:02:50]} 8. O-O {[%clk 0:02:40]}  Bg7 {[%clk 0:02:50]} 9. Kh1 {[%clk 0:02:34]}  O-O {[%clk 0:02:49]} 10. Rb1 {[%clk 0:02:33]}  a6 {[%clk 0:02:49]} 11. Be3 {[%clk 0:02:33]}  Qc7 {[%clk 0:02:49]} 12. Nd5 {[%clk 0:02:25]}  Nxd5 {[%clk 0:02:48]} 13. Bxd5 {[%clk 0:02:26]}  Ne5 {[%clk 0:02:43]} 14. h3 {[%clk 0:02:21]}  e6 {[%clk 0:02:40]} 15. Bb3 {[%clk 0:02:21]}  b5 {[%clk 0:02:40]} 16. Bd4 {[%clk 0:02:15]}  Bb7 {[%clk 0:02:38]} 17. f4 {[%clk 0:02:15]}  Nc4 {[%clk 0:02:37]} 18. Bxg7 {[%clk 0:02:15]}  Kxg7 {[%clk 0:02:38]} 19. f5 {[%clk 0:02:06]}  exf5 {[%clk 0:02:27]} 20. exf5 {[%clk 0:02:03]}  Bxg2+ {[%clk 0:02:27]} 21. Kh2 {[%clk 0:01:59]}  d5+ {[%clk 0:02:22]} 22. Rf4 {[%clk 0:01:52]}  Be4 {[%clk 0:02:14]} 23. f6+ {[%clk 0:01:44]}  Kh8 {[%clk 0:02:12]} 24. Qg1 {[%clk 0:01:43]}  g5 {[%clk 0:02:03]} 25. h4 {[%clk 0:01:22]}  Nd2 {[%clk 0:01:43]} 26. Qg3 {[%clk 0:00:40]}  Nxb1 {[%clk 0:01:35]} 27. hxg5 {[%clk 0:00:39]}  Nd2 {[%clk 0:01:30]} 28. Nd4 {[%clk 0:00:37]}  Rg8 {[%clk 0:01:27]} 29. c3 {[%clk 0:00:21]}  Rg6 {[%clk 0:01:21]} 30. Bd1 {[%clk 0:00:16]}  Rag8 {[%clk 0:01:13]} 31. Ne6 {[%clk 0:00:12]}  fxe6 {[%clk 0:01:11]} 32. f7 {[%clk 0:00:13]}  Nf1+ {[%clk 0:01:07]} 33. Rxf1 {[%clk 0:00:12]}  Qxg3+ {[%clk 0:01:08]} 34. Kxg3 {[%clk 0:00:13]}  Rxg5+ {[%clk 0:01:09]} 35. Kh4 {[%clk 0:00:14]}  Rg4+ {[%clk 0:01:08]} 36. Bxg4 {[%clk 0:00:13]}  Rf8 {[%clk 0:01:06]} 37. Bxe6 {[%clk 0:00:13]}  Kg7 {[%clk 0:01:07]} 38. Rg1+ {[%clk 0:00:13]}  Kf6 {[%clk 0:01:07]} 39. Rg8 {[%clk 0:00:13]}  Ke7 {[%clk 0:01:08]} 40. Kg5 {[%clk 0:00:13]}  Bg6 {[%clk 0:01:08]} 41. Bxd5 {[%clk 0:00:13]}  Bxf7 {[%clk 0:00:31]} 42. Rg7 {[%clk 0:00:13]}  Ke8 {[%clk 0:00:28]} 43. Bc6+ {[%clk 0:00:13]}  Kd8 {[%clk 0:00:28]} 44. a3 {[%clk 0:00:13]}  h5 {[%clk 0:00:26]} 45. Bb7 {[%clk 0:00:12]}  a5 {[%clk 0:00:23]} 46. Bc6 {[%clk 0:00:12]}  Bc4 {[%clk 0:00:23]} 47. Kxh5 {[%clk 0:00:12]}  Rf2 {[%clk 0:00:22]} 48. Ra7 {[%clk 0:00:08]}  a4 {[%clk 0:00:21]} 49. Kg5 {[%clk 0:00:06]}  Rxb2 {[%clk 0:00:20]} 50. Rb7 {[%clk 0:00:07]}  Rb3 {[%clk 0:00:20]} 51. Kf4 {[%clk 0:00:07]}  Kc8 {[%clk 0:00:18]} 52. Rg7 {[%clk 0:00:04]}  Rxc3 {[%clk 0:00:17]} 53. Ke5 {[%clk 0:00:04]}  Rxa3 {[%clk 0:00:17]} 54. Kd4 {[%clk 0:00:04]}  Kd8 {[%clk 0:00:06]} 55. Kc5 {[%clk 0:00:05]}  Rb3 {[%clk 0:00:07]} 56. Rd7+ {[%clk 0:00:04]}  Kc8 {[%clk 0:00:07]} 57. Kb6 {[%clk 0:00:05]}  a3 {[%clk 0:00:03]} 58. Re7 {[%clk 0:00:05]}  Rd3 {[%clk 0:00:03]} 59. Rc7+ {[%clk 0:00:04]}  Kd8 {[%clk 0:00:03]} 60. Ra7 {[%clk 0:00:03]}  a2 {[%clk 0:00:03]} 61. Kc5 {[%clk 0:00:01]}  Rd1 {[%clk 0:00:03]} 62. Ra8+ {[%clk 0:00:02]}  Ke7 {[%clk 0:00:03]} 63. Re8+ {[%clk 0:00:02]}  Kf7 {[%clk 0:00:03]} 64. Re3 {[%clk 0:00:02]}  a1=Q {[%clk 0:00:04]} 65. Rf3+ {[%clk 0:00:03]}  Kg6 {[%clk 0:00:04]} 66. Rg3+ {[%clk 0:00:03]}  Kh5 {[%clk 0:00:05]} 67. Rf3 {[%clk 0:00:04]}  Kg4 {[%clk 0:00:06]} 68. Rf8 {[%clk 0:00:04]}  Qd4+ {[%clk 0:00:06]} 69. Kb4 {[%clk 0:00:04]}  Qd6+ {[%clk 0:00:07]} 70. Ka5 {[%clk 0:00:05]}  Qxf8 {[%clk 0:00:08]} 71. Kb6 {[%clk 0:00:05]}  Qb8+ {[%clk 0:00:07]} 72. Bb7 {[%clk 0:00:06]}  Rd6+ {[%clk 0:00:06]} 73. Kc5 {[%clk 0:00:07]}  Qxb7 {[%clk 0:00:05]} 74. Kb4 {[%clk 0:00:08]}  Rd3 {[%clk 0:00:05]} 75. Kc5 {[%clk 0:00:08]}  Qc7+ {[%clk 0:00:03]} 76. Kb4 {[%clk 0:00:09]}  Rb3# {[%clk 0:00:03]} 0-1


[Site "https://www.chess.com"]